bitfinex-derivatives/quotes_ETHF0:USTF0_20250730
["timestamp","ask_amount","ask_price","bid_price","bid_amount"]
[1753910961034,3.0185,3754.1,3754.0,8.16703733]
[1753910963234,1.899,3754.1,3754.0,3.8936]
[1753910963435,3.0185,3754.1,3754.0,0.7215]
[1753910963742,3.0185,3753.9,3753.8,0.39958975]
[1753910964938,1.188,3753.3,3753.2,3.2078]
[1753910965144,1.5506,3753.2,3753.1,0.7215]
[1753910965346,2.4531,3753.2,3753.1,1.2247]
[1753910965941,3.0185,3753.2,3753.1,3.0817]
[1753910966142,2.4531,3753.2,3753.1,3.0817]
[1753910966742,18.92796,3753.3,3752.8,3.74083]
[1753910966932,2.4531,3752.9,3752.8,8.3863]
[1753910967135,3.0185,3752.9,3752.8,10.1831]
[1753910967336,2.4531,3752.9,3752.8,10.1831]
[1753910967541,0.711,3753.6,3752.8,7.1014]
[1753910967837,0.711,3753.5,3753.2,0.5639]
[1753910968042,2.4531,3753.4,3753.3,3.0817]
[1753910968242,3.0185,3753.4,3753.3,0.9188]
[1753910968741,21.94444,3753.4,3753.3,1.8415]
[1753910968942,0.4854,3753.0,3752.9,0.53301]
[1753910969240,2.9664,3753.0,3752.9,2.37171]
[1753910969449,2.9664,3753.0,3752.9,6.185]
[1753910969746,20.8495,3753.0,3752.9,6.9044]
[1753910969935,1.7577,3752.9,3752.8,3.2078]
[1753910970137,2.9664,3752.9,3752.8,5.0465]
[1753910970337,2.4585,3752.9,3752.8,6.75163]
[1753910970645,20.8455,3752.9,3752.8,6.2186]
[1753910971035,20.8465,3752.9,3752.8,6.2186]
[1753910971633,2.4585,3752.9,3752.8,6.2186]
[1753910971839,20.8425,3752.9,3752.8,6.2186]
[1753910973146,2.4585,3752.9,3752.8,6.2186]
[1753910973444,20.8415,3752.9,3752.8,6.2186]
[1753910973649,20.8375,3752.9,3752.8,7.41033733]
[1753910974546,20.8375,3752.9,3752.8,6.2186]
[1753910975044,18.379,3753.1,3752.9,0.5453]
[1753910975236,20.8375,3753.1,3753.0,3.0108]
[1753910975737,20.8375,3753.1,3753.0,6.9044]
[1753910976948,21.3454,3753.1,3753.0,1.8387]
[1753910977343,21.3454,3753.1,3753.0,3.0108]
[1753910978352,1.2087,3752.9,3752.8,3.2078]
[1753910978549,2.4585,3752.9,3752.8,5.6733]
[1753910979049,2.4585,3752.9,3752.8,3.0108]
[1753910983147,3.8976,3753.3,3753.0,0.53299]
[1753910983354,5.6663,3753.3,3753.2,3.0108]
[1753910983555,24.55026,3753.3,3753.2,3.0108]
[1753910983852,25.05816,3753.3,3753.2,3.0108]
[1753910984050,25.05816,3753.3,3753.2,2.2914]
[1753910986646,25.05816,3753.3,3753.2,1.8387]
[1753910987356,6.70716,3753.3,3753.2,1.8387]
[1753910988056,25.04516,3753.3,3753.2,1.8387]
[1753910988255,6.70716,3753.3,3753.2,1.8387]
[1753910988455,25.04416,3753.3,3753.2,1.8387]
[1753910989064,25.04416,3753.3,3753.2,0.5453]
[1753910989755,25.04416,3753.3,3753.2,0.914]
[1753910991562,25.04416,3753.3,3753.2,1.4706]
[1753910992657,1.33243,3753.2,3752.5,0.5453]
[1753910992862,24.49423733,3753.3,3752.5,3.0108]
[1753910992863,2.99156,3752.6,3752.5,3.0108]
[1753910993056,21.31456,3752.6,3752.5,6.9044]
[1753910993257,2.13288,3752.5,3752.4,0.914]
[1753910993459,3.49948,3752.5,3752.4,0.914]
[1753910995965,3.49948,3752.5,3752.4,1.4706]
[1753910996457,3.49948,3752.5,3752.4,1.8387]
[1753910998262,3.49948,3752.5,3752.4,1.2821]
[1753910998766,3.49948,3752.5,3752.4,1.8297]
[1753911001268,2.2482,3752.3,3752.2,1.38347598]
[1753911001566,21.7875,3752.3,3752.2,3.10547598]
[1753911002971,21.7875,3752.3,3752.2,0.68927598]
[1753911003173,21.7875,3752.3,3752.2,1.93107598]
[1753911003373,21.7875,3752.3,3752.2,3.10547598]
[1753911004769,21.2544,3752.3,3752.2,3.10547598]
[1753911005175,0.53309,3752.4,3752.2,6.99907598]
[1753911005472,19.0148,3752.3,3752.2,6.99907598]
[1753911005775,20.0023,3752.3,3752.2,6.99907598]
[1753911005975,20.3645,3752.3,3752.2,6.99907598]
[1753911006878,20.7299,3752.3,3752.2,6.99907598]
[1753911007077,20.7269,3752.3,3752.2,6.99907598]
[1753911007281,18.306,3752.3,3752.2,8.19081331]
[1753911007977,3.9136,3753.2,3752.3,1.84855]
[1753911008181,3.9136,3753.9,3753.7,0.342]
[1753911008382,21.58112272,3753.8,3753.7,1.8686]
[1753911008888,21.58112272,3753.8,3753.7,2.932]
[1753911009182,0.5429,3753.5,3752.7,1.1984]
[1753911009376,3.14552272,3753.4,3753.3,0.8578]
[1753911009681,4.33726005,3753.4,3753.3,0.8578]
[1753911009882,3.14552272,3753.4,3753.3,2.3844]
[1753911010074,2.3013,3753.4,3753.3,2.3844]
[1753911010280,1.3497,3753.4,3753.3,6.278]
[1753911010474,3.49303733,3753.4,3753.3,6.278]
[1753911010680,3.49303733,3753.4,3753.3,2.3844]
[1753911013492,3.49303733,3753.4,3753.3,2.932]
[1753911015994,3.2078,3753.5,3753.3,6.8256]
[1753911016291,1.19173733,3753.6,3753.4,2.932]
[1753911016492,1.19173733,3753.6,3753.4,1.186]
[1753911016793,1.19173733,3753.6,3753.5,2.932]
[1753911017185,1.19173733,3753.6,3753.5,6.8256]
[1753911017594,1.19173733,3753.6,3753.5,7.35853]
[1753911017890,1.19173733,3753.6,3753.5,6.8256]
[1753911018087,1.19173733,3753.7,3753.6,1.746]
[1753911018287,3.49303733,3753.7,3753.6,2.932]
[1753911021687,1.2487,3754.0,3753.6,2.932]
[1753911021888,2.0555,3754.0,3753.9,1.186]
[1753911022093,2.0555,3754.0,3753.9,2.932]
[1753911022292,0.5328,3754.4,3754.0,1.746]
[1753911022493,1.3396,3754.4,3754.3,2.932]
[1753911022698,3.78003733,3754.4,3754.3,2.932]
[1753911023384,5.20633733,3755.0,3754.9,1.186]
[1753911023592,6.10648716,3755.0,3754.9,2.932]
[1753911023893,7.29822449,3755.0,3754.9,2.932]
[1753911024088,2.03492449,3755.0,3754.9,3.46473]
[1753911024289,0.84318716,3755.0,3754.9,7.35833]
[1753911024596,7.08083733,3755.7,3755.6,2.932]
[1753911024796,4.43055255,3755.7,3755.6,2.932]
[1753911025192,1.22275255,3755.7,3755.6,11.8256]
[1753911025392,3.24723733,3756.6,3756.5,2.932]
[1753911025589,3.49303733,3756.6,3756.5,2.932]
[1753911025794,1.3497,3756.6,3756.5,2.932]
[1753911025990,0.3622,3756.6,3756.5,2.932]
[1753911026200,1.99853733,3756.8,3756.7,1.186]
[1753911026392,2.54143733,3756.8,3756.7,2.932]
[1753911026888,3.2078,3756.9,3756.7,2.932]
[1753911027087,3.2078,3756.9,3756.8,2.932]
[1753911027301,3.57,3756.9,3756.8,2.932]
[1753911027495,4.0146,3756.9,3756.8,2.932]
[1753911027798,5.5091,3756.9,3756.8,2.932]
[1753911029204,3.2078,3756.9,3756.8,2.932]
[1753911029399,4.5341,3756.9,3756.8,2.932]
[1753911029899,5.2695,3756.9,3756.8,2.932]
[1753911030099,5.5355,3756.9,3756.8,2.932]
[1753911031193,2.3277,3756.9,3756.8,2.932]
[1753911031395,5.5355,3756.9,3756.8,1.3496]
[1753911031698,5.5355,3756.9,3756.8,0.8578]
[1753911032101,2.86026,3756.1,3756.0,0.9257]
[1753911032308,7.42599733,3756.1,3756.0,0.5533]
[1753911033004,7.25979733,3756.1,3756.0,0.9257]
[1753911033205,6.06806,3756.1,3756.0,2.4851]
[1753911033404,6.06806,3756.1,3756.0,2.9965]
[1753911035599,2.86026,3756.1,3756.0,2.9965]
[1753911037713,2.3277,3756.1,3756.0,2.9965]
[1753911038410,5.5355,3756.9,3756.8,0.8482]
[1753911038608,3.2078,3756.9,3756.8,0.3724]
[1753911038809,3.2078,3756.9,3756.8,7.42256]
[1753911039012,4.0297,3756.9,3756.8,6.8901]
[1753911039213,5.5355,3756.9,3756.8,6.8901]
[1753911039401,5.2695,3756.9,3756.8,6.8901]
[1753911039606,3.2078,3756.9,3756.8,6.8901]
[1753911040712,1.3263,3757.3,3757.2,2.9965]
[1753911041010,2.0617,3757.3,3757.2,2.9965]
[1753911041615,2.3277,3757.3,3757.2,2.9965]
[1753911041810,2.0617,3757.3,3757.2,2.9965]
[1753911042011,1.2398,3757.5,3757.4,1.195]
[1753911042306,2.0617,3757.5,3757.4,2.9965]
[1753911042512,2.0617,3757.5,3757.4,1.4015]
[1753911042513,1.92425697,3757.5,3757.4,1.4015]
[1753911042815,3.33025697,3757.5,3757.4,0.5533]
[1753911043212,0.266,3757.2,3757.1,0.5533]
[1753911043513,4.35595179,3757.2,3757.1,0.5533]
[1753911043717,3.16421446,3757.2,3757.1,0.9257]
[1753911043909,4.35595179,3757.2,3757.1,0.9257]
[1753911044111,3.51943733,3757.2,3757.1,0.9257]
[1753911044311,3.51943733,3757.2,3757.1,1.4015]
[1753911044516,2.3277,3757.2,3757.1,2.9965]
[1753911045117,2.5941,3757.2,3757.1,2.9965]
[1753911045419,2.8601,3757.2,3757.1,2.9965]
[1753911046415,6.0679,3757.2,3757.1,2.4851]
[1753911046820,6.0679,3757.2,3757.1,2.9965]
[1753911050424,6.90645108,3757.2,3757.1,2.9965]
[1753911050815,3.69865108,3757.2,3757.1,2.9965]
[1753911051924,2.90025108,3757.2,3757.1,2.9965]
[1753911053726,1.66045108,3757.2,3757.1,2.9965]
[1753911054125,2.90025108,3757.2,3757.1,2.9965]
[1753911054621,0.83855108,3757.2,3757.1,6.8901]
[1753911055420,1.78697624,3757.2,3757.1,6.8901]
[1753911056124,0.84252533,3757.2,3757.1,6.8901]
[1753911056524,1.79095049,3757.2,3757.1,6.8901]
[1753911057228,0.84252533,3757.2,3757.1,6.8901]
[1753911059827,2.79622,3757.1,3757.0,21.2344]
[1753911060027,3.63874533,3757.1,3757.0,21.2344]
[1753911060427,3.10632533,3757.1,3757.0,21.2344]
[1753911060630,0.94842516,3757.3,3757.2,1.1586]
[1753911060819,0.94842516,3757.3,3757.2,2.7857]
[1753911061025,0.94842516,3757.3,3757.2,6.6793]
[1753911061227,2.52252733,3757.9,3757.2,6.6793]
[1753911061228,1.42963082,3757.8,3757.7,1.1586]
[1753911061423,3.17853082,3758.0,3757.9,0.8872]
[1753911061628,2.2638,3758.0,3757.9,0.8872]
[1753911061831,1.42209621,3758.6,3758.3,0.53225]
[1753911062019,1.0447,3758.6,3758.5,5.3867]
[1753911062224,2.0296,3758.6,3758.5,24.3885]
[1753911063225,0.38,3758.7,3758.6,1.6908]
[1753911063432,0.38,3758.7,3758.6,3.3179]
[1753911063819,3.3542,3759.5,3758.6,2.7857]
[1753911063820,3.2078,3759.5,3758.6,2.7857]
[1753911064024,1.42209621,3759.8,3759.6,0.4535]
[1753911064228,3.68589621,3759.8,3759.7,0.8872]
[1753911064436,2.2638,3759.8,3759.7,19.4342]
[1753911064624,2.0296,3759.8,3759.7,24.3133]
[1753911065126,2.2638,3759.8,3759.7,24.3133]
[1753911066026,1.42209621,3760.7,3759.8,0.8792]
[1753911066223,0.8105,3760.7,3760.6,6.07883733]
[1753911066424,0.8105,3760.7,3760.6,25.52703733]
[1753911066623,2.46679621,3761.0,3760.9,1.3407]
[1753911066821,2.46679621,3761.0,3760.9,0.8872]
[1753911066822,3.68589621,3761.0,3760.9,0.8872]
[1753911067026,3.68589621,3761.0,3760.9,2.5585]
[1753911067226,2.2638,3761.0,3760.9,2.5585]
[1753911067423,2.2638,3761.0,3760.9,1.9517]
[1753911068533,2.2638,3761.0,3760.9,1.3407]
[1753911068737,0.7042,3761.3,3761.0,0.5207]
[1753911068934,1.57652,3761.4,3761.3,0.3665]
[1753911069133,1.57652,3761.4,3761.3,0.8872]
[1753911069338,2.79562,3761.4,3761.3,0.8872]
[1753911070237,2.2638,3761.4,3761.3,2.5585]
[1753911071131,0.38,3761.7,3761.4,0.53181]
[1753911071331,0.38,3761.7,3761.6,5.7663]
[1753911071533,1.8947,3761.7,3761.6,5.7663]
[1753911071737,2.7587,3761.7,3761.6,24.4133]
[1753911072038,1.42209621,3762.3,3761.6,24.4133]
[1753911072240,3.09659621,3762.3,3762.2,4.44689411]
[1753911072535,2.1763,3762.3,3762.2,2.0392]
[1753911072737,2.98660943,3762.3,3762.2,2.0392]
[1753911073038,3.69080943,3762.3,3762.2,2.0392]
[1753911073828,3.69080943,3762.3,3762.0,3.2078]
[1753911074132,1.1596,3761.3,3761.2,5.247]
[1753911074326,1.1596,3761.3,3761.2,23.909]
[1753911074327,2.8805,3761.3,3761.2,23.909]
[1753911075038,2.8805,3761.3,3761.2,23.915]
[1753911075339,0.98715,3761.9,3761.8,0.4535]
[1753911075532,0.80892687,3761.9,3761.8,2.57095]
[1753911076126,3.5629,3762.4,3762.3,0.82]
[1753911076332,1.16372034,3762.4,3762.3,20.7062]
[1753911076537,3.68912034,3762.4,3762.3,19.487]
[1753911077838,3.68912034,3762.4,3762.3,20.7062]
[1753911078137,3.68872563,3762.4,3762.3,20.7062]
[1753911078334,2.8805,3762.4,3762.3,20.7062]
[1753911079834,2.8805,3762.4,3762.3,20.6842]
[1753911080232,1.1596,3762.4,3762.3,20.6842]
[1753911080436,0.3551,3762.4,3762.3,20.6842]
[1753911080743,1.6745,3762.6,3762.5,0.82]
[1753911081039,0.5316,3762.9,3762.5,19.0085]
[1753911081239,0.53156,3763.2,3762.6,1.2192]
[1753911081438,1.1596,3763.1,3763.0,0.82]
[1753911081734,1.1596,3763.1,3762.5,21.04969411]
[1753911081735,1.69118,3763.0,3762.9,0.3665]
[1753911081938,1.69118,3763.0,3762.8,18.668]
[1753911082134,1.5611,3762.5,3762.4,3.2078]
[1753911082338,2.8805,3762.0,3761.9,4.10604]
[1753911082536,2.8805,3762.0,3761.9,22.77104]
[1753911082838,2.8805,3762.0,3761.9,24.44374]
[1753911083340,2.8805,3762.0,3761.9,5.77874]
[1753911083526,4.53683,3762.9,3761.9,23.909]
[1753911083728,1.3289,3763.2,3761.9,23.909]
[1753911083729,0.7042,3762.5,3762.4,1.35165]
[1753911083933,0.7042,3762.5,3762.4,2.0392]
[1753911084733,0.7042,3762.5,3762.4,2.57087]
[1753911084937,1.6745,3762.5,3762.4,2.57087]
[1753911085236,1.6745,3762.5,3762.4,2.0392]
[1753911085237,2.8805,3762.5,3762.4,2.0392]
[1753911085542,2.8805,3762.5,3761.7,1.32941]
[1753911085543,0.3491,3762.0,3761.9,0.3665]
[1753911085833,1.1596,3762.0,3761.9,0.53174]
[1753911086039,1.1596,3762.0,3761.9,0.89824]
[1753911086237,2.8805,3762.0,3761.9,2.57094]
[1753911086739,2.8805,3762.0,3761.9,2.0392]
[1753911087338,2.8805,3762.0,3761.9,0.82]
[1753911088335,3.69100198,3762.0,3761.9,2.0392]
[1753911088739,3.69100198,3762.0,3761.9,2.1762]
[1753911089833,2.8805,3762.0,3761.9,2.1762]
[1753911090639,1.8433,3762.0,3761.9,2.1762]
[1753911090846,2.3364,3762.0,3761.9,2.1762]
[1753911091046,3.0936,3762.0,3761.9,2.1762]
[1753911091241,3.9052837,3762.0,3761.9,2.1762]
[1753911092346,2.0183837,3762.0,3761.9,2.1762]
[1753911092747,0.8116837,3762.0,3761.9,2.1762]
[1753911092946,6.3021,3762.5,3762.4,1.622]
[1753911093242,4.51639621,3762.5,3762.4,0.8575]
[1753911093748,4.03958154,3762.5,3762.4,0.8575]
[1753911094148,3.0943,3762.5,3762.4,2.1962]
[1753911095249,4.04028998,3762.5,3762.4,20.8242]
[1753911095650,4.57193998,3762.5,3762.4,20.8242]
[1753911095848,3.62595,3762.5,3762.4,13.60249892]
[1753911096148,3.0943,3762.2,3762.1,2.82429411]
[1753911096348,3.0943,3762.2,3762.1,21.59399411]
[1753911096548,3.0943,3762.2,3762.1,21.43429411]
[1753911096950,3.0943,3762.2,3762.1,21.59399411]
[1753911097146,3.62604,3761.9,3761.8,3.2078]
[1753911097353,3.62611,3761.4,3761.3,3.5717]
[1753911097650,5.52215109,3761.4,3761.3,3.2078]
[1753911097844,3.62611,3761.4,3761.3,3.2078]
[1753911098651,3.62611,3761.4,3761.3,3.5717]
[1753911101649,3.62611,3761.4,3761.3,3.2078]
[1753911101955,3.62615,3761.1,3761.0,19.0256]
[1753911102448,3.0943,3761.1,3761.0,19.1853]
[1753911102654,3.0943,3761.1,3761.0,18.609]
[1753911102850,4.52087527,3761.1,3761.0,18.609]
[1753911103249,3.0943,3761.1,3761.0,18.9729]
[1753911103550,3.2078,3761.5,3760.7,0.3639]
[1753911103551,1.7393,3760.8,3760.7,0.3639]
[1753911103847,1.3296,3761.3,3759.9,18.59]
[1753911103848,1.2074,3760.0,3759.9,18.59]
[1753911104052,1.80022887,3760.0,3759.9,19.1663]
[1753911104353,1.6061,3760.0,3759.9,19.7349]
[1753911104654,3.12522887,3760.0,3759.9,19.7349]
[1753911104851,4.01286529,3760.0,3759.9,19.7349]
[1753911105151,4.48845652,3760.0,3759.9,19.7349]
[1753911105452,3.06146321,3760.0,3759.9,19.7349]
[1753911106254,4.01102821,3760.0,3759.9,19.7349]
[1753911106450,4.01102821,3760.0,3759.9,18.9539]
[1753911106451,3.98186321,3760.0,3759.9,18.9539]
[1753911106753,3.98186321,3760.0,3759.9,19.0066]
[1753911107547,3.98186321,3760.0,3759.9,18.9539]
[1753911107852,3.98186321,3760.0,3759.9,18.9469]
[1753911108051,3.98186321,3760.0,3759.9,18.9459]
[1753911108955,3.98186321,3760.0,3759.9,0.3639]
[1753911109169,3.98186321,3760.0,3759.9,18.9479]
[1753911111454,3.0943,3760.0,3759.9,0.3639]
[1753911111654,3.0943,3760.0,3759.8,3.60675209]
[1753911111858,3.62632,3760.0,3759.8,3.60675209]
[1753911112058,3.0943,3759.9,3759.8,3.60675209]
[1753911113157,3.0943,3759.9,3759.8,3.97065209]
[1753911114249,3.0943,3759.9,3759.8,4.02335209]
[1753911114648,3.0943,3759.9,3759.8,4.18305209]
[1753911115651,3.0943,3759.9,3759.8,4.23015209]
[1753911116758,1.325,3759.9,3759.8,4.75165209]
[1753911117260,2.5324,3759.9,3759.8,4.75165209]
[1753911117461,3.0943,3759.9,3759.8,4.75165209]
[1753911121764,3.0943,3759.9,3759.8,3.97065209]
[1753911122157,3.0943,3759.9,3759.8,3.60675209]
[1753911124459,3.0943,3759.9,3759.8,4.08145209]
[1753911124657,0.5863,3760.2,3760.1,0.3672]
[1753911124858,2.4561,3760.2,3760.1,3.92099411]
[1753911125057,3.2261,3760.2,3760.1,3.24679411]
[1753911125458,3.2261,3760.2,3760.1,3.92099411]
[1753911125658,3.2261,3760.2,3760.1,3.36709411]
[1753911126259,1.3212,3760.8,3760.7,0.3672]
[1753911126460,2.0608,3760.5,3760.4,0.3672]
[1753911126660,1.9075,3760.5,3760.4,0.4747]
[1753911126861,2.6775,3760.5,3760.4,0.4747]
[1753911127062,2.6775,3760.5,3760.4,0.9594]
[1753911127258,3.2261,3760.5,3760.4,1.5133]
[1753911127666,3.2261,3760.5,3760.4,0.9594]
[1753911128363,1.3212,3760.5,3760.4,0.4685]
[1753911128969,3.2261,3760.5,3760.4,0.4685]
[1753911129466,3.2261,3760.5,3760.4,0.8096]
[1753911129670,3.2261,3760.5,3760.4,1.4754]
[1753911134969,3.2261,3760.5,3760.4,2.66374144]
[1753911137773,3.2261,3760.5,3760.4,2.10984144]
[1753911138680,3.2261,3760.5,3760.4,1.99794144]
[1753911140380,3.2261,3760.5,3760.4,2.10984144]
[1753911140680,3.2261,3760.5,3760.4,1.99794144]
[1753911141683,3.2261,3760.5,3760.4,1.81884144]
[1753911141884,3.2261,3760.5,3760.4,1.65684144]
[1753911143082,3.2261,3759.9,3759.7,3.2078]
[1753911143983,3.2261,3759.9,3759.7,3.73984]
[1753911144487,3.2261,3759.9,3759.7,3.2078]
[1753911146186,3.2261,3759.9,3759.7,3.73984]
[1753911146680,3.2261,3759.9,3759.6,1.82169144]
[1753911146876,3.2261,3759.9,3759.4,1.18834144]
[1753911148575,3.2261,3759.4,3759.3,3.2078]
[1753911149381,1.3212,3759.4,3758.9,4.48874144]
[1753911149684,3.1772,3759.3,3759.2,0.8769]
[1753911150183,3.1772,3759.3,3759.2,1.40902]
[1753911150377,3.1772,3759.3,3759.2,0.8769]
[1753911152492,3.1772,3759.0,3758.9,3.2078]
[1753911152790,3.1772,3759.0,3758.9,3.599]
[1753911152984,3.1772,3759.0,3758.9,3.2078]
[1753911153181,1.2629,3758.5,3758.4,4.51823]
[1753911153483,3.1772,3758.5,3758.4,3.2078]
[1753911154287,3.70942,3758.5,3758.4,3.2078]
[1753911154590,3.1772,3758.5,3758.4,3.2078]
[1753911155890,3.1772,3758.5,3758.4,0.53223]
[1753911156092,3.1772,3758.5,3758.4,1.79613]
[1753911156489,3.44856062,3758.5,3758.4,1.79613]
[1753911156995,3.44856062,3758.5,3758.4,1.94433]
[1753911157187,3.44856062,3758.5,3758.4,2.03693]
[1753911157388,3.44856062,3758.5,3758.4,2.59303]
[1753911158487,3.44856062,3758.5,3758.4,3.78137144]
[1753911160897,3.44856062,3758.5,3758.4,1.40913]
[1753911161196,3.44856062,3758.5,3758.4,0.92343]
[1753911161389,3.44856062,3758.5,3758.4,1.79613]
[1753911162794,0.27136062,3758.5,3758.4,1.94433]
[1753911162997,5.1221,3759.3,3759.2,2.59292]
[1753911163193,6.64950068,3759.3,3759.2,3.78126144]
[1753911165501,6.385,3759.3,3759.2,3.78126144]
[1753911167806,3.2078,3759.3,3759.2,3.78126144]
[1753911168012,3.987,3759.3,3759.2,3.78126144]
[1753911168194,1.9143,3760.3,3759.6,1.1344]
[1753911168504,1.9143,3760.3,3759.5,1.3302]
[1753911168505,1.2629,3760.0,3759.9,3.22506144]
[1753911168806,3.1772,3760.0,3759.9,2.69304144]
[1753911168993,3.1772,3760.0,3759.9,2.60044144]
[1753911169197,3.1772,3760.0,3759.9,2.45224144]
[1753911170701,3.1772,3759.8,3759.7,3.2078]
[1753911170897,1.2629,3759.4,3759.3,1.01781]
[1753911171207,3.1772,3759.4,3759.3,1.01781]
[1753911171395,3.1772,3759.4,3759.3,1.40901]
[1753911171598,3.1772,3759.4,3759.3,1.79601]
[1753911172409,3.1772,3759.0,3758.9,3.2078]
[1753911172602,3.1772,3758.9,3758.8,0.53217]
[1753911172903,3.1772,3758.9,3758.8,1.31037]
[1753911173110,3.1772,3758.9,3758.8,1.94427]
[1753911173409,3.1772,3758.9,3758.8,2.03687]
[1753911174110,3.1772,3758.9,3758.8,1.5047]
[1753911174406,3.1772,3758.9,3758.8,1.4121]
[1753911175915,3.1772,3758.9,3758.8,1.2639]
[1753911176515,1.2629,3758.6,3758.5,3.2078]
[1753911176811,3.1772,3758.6,3758.5,3.2078]
[1753911179716,3.1772,3758.6,3758.5,3.74002]
[1753911179914,3.1772,3758.6,3758.5,5.25674144]
[1753911182613,3.1772,3758.6,3758.5,4.78734144]
[1753911182805,1.28735,3758.3,3758.1,3.2078]
[1753911183114,1.2353,3757.8,3757.7,5.07122]
[1753911183413,3.61948,3758.1,3758.0,1.402]
[1753911183605,3.61948,3758.1,3758.0,2.51944144]
[1753911185913,3.61948,3758.1,3758.0,1.2177]
[1753911186116,1.2353,3757.8,3757.7,6.33047144]
[1753911186308,3.0872,3757.8,3757.7,6.33047144]
[1753911186816,3.0872,3757.8,3757.7,3.2078]
[1753911187412,3.0872,3757.8,3757.7,4.4255]
[1753911187615,3.0872,3757.8,3757.7,1.2177]
[1753911187912,3.0872,3757.8,3757.7,1.86343]
[1753911188225,3.0872,3757.8,3757.7,1.402]
[1753911192620,3.0872,3757.8,3757.7,1.3311]
[1753911194121,3.0872,3757.8,3757.7,1.402]
[1753911194620,3.61949,3758.1,3758.0,1.402]
[1753911194828,3.61949,3758.1,3758.0,3.11784144]
[1753911195123,3.61949,3758.1,3758.0,2.59034144]
[1753911195922,3.61949,3758.1,3758.0,1.3311]
[1753911196317,3.61949,3758.1,3758.0,1.2177]
[1753911197016,3.61949,3758.1,3757.4,3.2078]
[1753911197017,1.8519,3758.1,3757.4,3.2078]
[1753911197217,1.2353,3757.2,3757.1,1.33632]
[1753911197419,3.0872,3757.2,3757.1,1.33632]
[1753911197619,3.0872,3757.2,3757.1,1.42532]
[1753911197818,3.0872,3757.2,3757.1,2.41082]
[1753911198519,2.5037,3757.2,3757.1,2.41082]
[1753911198723,0.5642,3757.9,3757.2,1.0411]
[1753911199024,3.0872,3757.9,3757.8,3.06674144]
[1753911199321,3.6195,3757.9,3757.8,2.53924144]
[1753911199513,3.6195,3757.9,3757.8,2.48364144]
[1753911200021,3.6195,3757.9,3757.8,0.8274]
[1753911200222,3.61953,3757.7,3757.6,1.2619]
[1753911200723,3.61953,3757.7,3757.6,1.2063]
[1753911201513,3.61956,3757.5,3757.4,0.3694]
[1753911201919,3.61956,3757.5,3757.4,0.8274]
[1753911202824,3.61956,3757.5,3757.4,1.2063]
[1753911205625,3.0872,3757.5,3757.4,1.2063]
[1753911207032,3.0872,3757.5,3757.3,1.18834144]
[1753911207033,3.0872,3757.4,3757.3,1.93664144]
[1753911207225,3.0872,3757.4,3757.3,2.02564144]
[1753911207527,3.0872,3757.4,3757.3,2.60874144]
[1753911207729,3.0872,3757.4,3757.3,3.06674144]
[1753911208120,2.5037,3757.4,3757.3,3.06674144]
[1753911208929,3.0318,3757.4,3757.3,3.06674144]
[1753911210923,0.53236,3757.6,3757.3,2.55802144]
[1753911210924,1.78006,3757.6,3757.3,2.55802144]
[1753911211132,2.26026,3757.6,3757.5,1.8778]
[1753911211429,2.26026,3757.6,3757.5,1.3041]
[1753911211727,3.50796,3757.6,3757.5,1.3041]
[1753911219136,3.50796,3757.6,3757.5,1.8778]
[1753911219633,3.50796,3757.6,3757.5,1.3041]
[1753911220029,3.50796,3757.6,3757.5,1.26]
[1753911221236,3.50796,3757.6,3757.5,1.3041]
[1753911223236,3.50796,3757.6,3757.5,1.1895]
[1753911227031,2.9756,3757.6,3757.5,1.26]
[1753911227231,1.246,3757.8,3757.7,2.41012]
[1753911227432,1.2477,3757.8,3757.7,3.59846144]
[1753911228034,1.1998,3758.1,3758.0,0.8107]
[1753911228234,3.84126136,3758.1,3758.0,0.8107]
[1753911228532,3.84126136,3758.1,3758.0,1.3844]
[1753911228736,3.84126136,3758.1,3758.0,1.8778]
[1753911236141,3.84132351,3758.1,3758.0,1.8778]
[1753911236338,3.84132351,3758.1,3758.0,1.3041]
[1753911237339,3.84132351,3758.1,3758.0,1.26]
[1753911237541,3.84132351,3758.1,3758.0,1.1895]
[1753911238738,3.84132351,3758.1,3758.0,1.2356]
[1753911239343,3.84132351,3758.1,3758.0,1.2179]
[1753911239538,3.84132351,3758.1,3758.0,1.1895]
[1753911241749,2.9286,3757.7,3757.6,0.3682]
[1753911242041,2.9286,3757.1,3757.0,5.47973]
[1753911242347,2.9286,3757.1,3757.0,4.9473]
[1753911242546,2.9286,3757.1,3757.0,6.13564144]
[1753911242742,2.9286,3757.1,3757.0,5.55144144]
[1753911242943,2.9286,3757.1,3757.0,3.2078]
[1753911243147,2.9286,3756.9,3756.8,0.39927067]
[1753911243344,1.72896,3756.1,3756.0,3.2078]
[1753911243543,0.509,3756.7,3756.6,0.53249]
[1753911243739,1.7054,3756.7,3756.6,3.03344144]
[1753911243945,1.7054,3756.7,3756.6,1.8451]
[1753911244148,2.9286,3756.7,3756.6,1.8451]
[1753911244343,2.9286,3756.7,3756.6,1.2893]
[1753911245344,0.7258,3756.3,3756.2,1.43594]
[1753911245551,2.9286,3756.3,3756.2,1.307]
[1753911245754,2.4196,3756.3,3756.2,1.8451]
[1753911246849,2.9286,3756.3,3756.2,1.8451]
[1753911248054,1.1964,3756.8,3756.7,1.84237]
[1753911248257,2.9286,3756.8,3756.7,1.84237]
[1753911248461,2.9286,3756.8,3756.7,0.7541]
[1753911248663,2.9286,3756.8,3756.7,1.2609]
[1753911249966,1.1964,3756.5,3756.4,1.25821]
[1753911250264,2.9286,3756.5,3756.4,1.79341]